bitfinex/quotes_ETHUSD_20240709
["timestamp","ask_amount","ask_price","bid_price","bid_amount"]
[1720490460391,0.79220173,3034.7,3033.5,1.742]
[1720490460575,2.3872,3035.0,3033.5,5.03851]
[1720490460766,0.08240104,3034.9,3033.5,1.742]
[1720490460963,0.08240104,3034.9,3033.2,9.7351]
[1720490461169,3.55740104,3034.9,3033.2,13.03193]
[1720490461573,3.55740104,3034.9,3033.5,1.742]
[1720490461773,7.10394539,3034.8,3033.5,1.742]
[1720490461986,4.10741115,3034.7,3033.5,1.742]
[1720490462173,3.0,3034.6,3033.2,9.7351]
[1720490462494,0.08241408,3034.5,3033.2,9.7351]
[1720490462698,3.7113584,3034.8,3033.2,13.03187]
[1720490462998,3.0,3034.9,3033.7,3.29629]
[1720490463299,3.57320528,3034.9,3033.6,0.03141127]
[1720490464076,3.57320528,3034.9,3033.7,3.29629]
[1720490464669,3.57320528,3034.9,3033.5,8.33489]
[1720490464865,0.59604053,3034.8,3033.5,5.03844]
[1720490465096,0.59604053,3034.8,3033.7,3.29629]
[1720490465292,3.0,3034.9,3033.8,2.46151194]
[1720490465498,2.3872,3035.0,3033.9,1.742]
[1720490465834,5.3862,3035.4,3034.1,3.2958]
[1720490465973,1.14180624,3035.3,3034.1,3.2958]
[1720490466315,0.65280062,3035.2,3033.9,1.742]
[1720490466706,1.22420251,3035.1,3033.8,2.4301]
[1720490466916,7.00301563,3035.0,3033.5,1.742]
[1720490467218,7.00301563,3035.0,3033.3,2.4141]
[1720490467219,5.40776287,3034.9,3033.3,2.4141]
[1720490467423,6.98521563,3034.8,3033.3,2.4141]
[1720490467715,3.475,3034.5,3033.1,1.742]
[1720490467882,3.475,3034.5,3032.9,0.1118871]
[1720490467883,5.7957,3034.3,3032.9,0.1118871]
[1720490468076,3.475,3033.9,3032.9,0.1118871]
[1720490468377,3.475,3033.4,3032.9,0.1118871]
[1720490468563,2.3207,3033.5,3032.9,0.1118871]
[1720490468564,4.70003908,3033.3,3032.9,0.1118871]
[1720490468770,4.22503903,3033.2,3032.9,0.1118871]
[1720490468968,3.0,3033.2,3032.9,0.1118871]
[1720490469407,3.23207,3033.4,3032.9,0.1118871]
[1720490469705,0.555277,3033.3,3032.9,0.1118871]
[1720490469905,1.34154498,3033.8,3032.9,0.1118871]
[1720490469906,2.2873,3033.9,3032.9,0.1118871]
[1720490470071,1.14233766,3033.8,3032.9,0.1118871]
[1720490470265,0.08242623,3033.7,3032.9,0.1118871]
[1720490470534,1.14242834,3033.6,3032.9,0.1118871]
[1720490470687,3.79439885,3033.7,3032.9,0.1118871]
[1720490470874,4.14248004,3033.6,3032.9,0.1118871]
[1720490471184,0.08243872,3033.5,3032.9,0.1118871]
[1720490471378,3.08243871,3033.6,3032.9,0.1118871]
[1720490471590,0.67119726,3033.5,3032.9,0.1118871]
[1720490471791,0.23697262,3033.7,3032.9,0.1118871]
[1720490472176,0.31939528,3033.7,3032.9,0.1118871]
[1720490472571,0.23697262,3033.7,3032.9,0.1118871]
[1720490472796,0.08241801,3034.2,3033.0,2.2577]
[1720490473000,2.2648,3034.3,3033.0,2.2577]
[1720490473271,0.57957,3034.4,3033.3,1.742]
[1720490473590,2.59799206,3034.5,3033.3,1.742]
[1720490474314,2.59799206,3034.5,3033.7,1.742]
[1720490474612,5.88960354,3035.3,3034.2,2.3401]
[1720490474613,1.68530675,3035.3,3034.2,2.3401]
[1720490474804,0.33626456,3035.3,3034.5,1.742]
[1720490475112,2.363,3035.8,3034.5,1.742]
[1720490475620,0.08237882,3035.5,3034.2,2.3401]
[1720490475821,4.69912472,3035.5,3034.2,2.3401]
[1720490476108,3.475,3035.3,3034.2,2.3401]
[1720490476271,0.08239466,3035.2,3034.2,2.3401]
[1720490476672,3.475,3034.8,3033.3,2.4408]
[1720490476791,2.4094,3034.9,3033.4,3.29658]
[1720490476984,0.0824047,3034.8,3033.4,3.29658]
[1720490477183,0.63240302,3034.7,3033.3,2.4408]
[1720490477386,2.13240302,3034.7,3033.0,2.327]
[1720490477720,1.34050321,3034.4,3032.9,0.1118871]
[1720490477913,4.6996684,3034.3,3032.9,0.1118871]
[1720490478116,5.8844,3034.1,3032.9,0.1118871]
[1720490478321,3.08243021,3034.0,3032.9,0.1118871]
[1720490479614,3.0,3033.9,3032.9,0.1118871]
[1720490479794,3.08240978,3034.2,3033.0,5.62397]
[1720490479988,0.08240978,3034.2,3033.1,3.29692]
[1720490480298,5.4094,3034.5,3033.1,3.29692]
[1720490480299,3.0824098,3034.5,3033.1,3.29692]
[1720490480510,3.0824098,3034.5,3033.0,2.327]
[1720490480511,0.69949948,3034.4,3033.0,2.327]
[1720490480713,0.08240981,3034.4,3033.0,2.327]
[1720490480894,3.0,3034.7,3033.1,3.29693]
[1720490481096,1.1421085,3034.6,3033.1,3.29693]
[1720490481305,3.0824098,3034.7,3033.1,3.29693]
[1720490481515,1.58454933,3034.6,3033.1,3.29693]
[1720490481697,1.34211802,3034.8,3033.3,5.69482]
[1720490481897,1.1420529,3034.7,3033.3,5.69482]
[1720490482094,0.08240571,3034.8,3033.3,5.69482]
[1720490482333,1.14208275,3034.7,3033.3,5.69482]
[1720490482530,0.08240571,3034.8,3033.3,5.69482]
[1720490482736,0.08240571,3034.7,3033.3,5.69482]
[1720490483230,3.55740571,3034.7,3033.3,2.3981]
[1720490483528,3.55740571,3034.7,3033.0,7.44]
[1720490483529,3.475,3034.4,3033.0,7.44]
[1720490483732,4.14208775,3034.3,3033.0,7.44]
[1720490483908,0.49662728,3034.2,3033.0,7.44]
[1720490484232,0.0824185,3034.2,3033.0,7.44]
[1720490484900,0.0824185,3034.2,3032.9,0.1118871]
[1720490485294,3.0,3034.4,3033.0,2.327]
[1720490485527,3.0,3034.4,3033.2,3.29682]
[1720490485839,1.34198002,3034.7,3033.2,3.29682]
[1720490485840,0.3,3034.3,3033.2,3.29682]
[1720490486130,4.34198002,3034.7,3033.0,2.327]
[1720490486131,0.08240767,3034.2,3033.0,2.327]
[1720490486311,2.3021,3034.1,3032.9,0.1118871]
[1720490486632,0.08242479,3034.0,3032.9,0.1118871]
[1720490486829,2.21446671,3034.1,3032.9,0.1118871]
[1720490487130,6.59019405,3034.0,3032.9,0.1118871]
[1720490487330,5.48276716,3033.9,3032.9,0.1118871]
[1720490487537,1.22477252,3033.8,3032.9,0.1118871]
[1720490487695,0.63895163,3033.7,3032.9,0.1118871]
[1720490490242,3.475,3033.6,3032.9,0.1118871]
[1720490490415,3.0,3033.5,3032.9,0.1118871]
[1720490490738,0.08243516,3033.4,3032.9,0.1118871]
[1720490490936,0.43967905,3033.6,3032.9,0.1118871]
[1720490491702,0.35724393,3033.6,3032.9,0.1118871]
[1720490492105,0.0824322,3033.9,3032.9,0.1118871]
[1720490494041,3.5574322,3033.9,3032.9,0.1118871]
[1720490494237,4.14243829,3033.8,3032.9,0.1118871]
[1720490494444,0.0824375,3033.7,3032.9,0.1118871]
[1720490495914,3.08243498,3033.8,3032.9,0.1118871]
[1720490496122,0.6557435,3033.7,3032.9,0.1118871]
[1720490496322,0.73817833,3033.7,3032.9,0.1118871]
[1720490496621,0.6557435,3033.7,3032.9,0.1118871]
[1720490496819,3.0,3033.8,3032.9,0.1118871]
[1720490496820,0.08242762,3033.8,3032.9,0.1118871]
[1720490497326,0.08242968,3033.8,3032.9,0.1118871]
[1720490497918,0.08243311,3033.7,3032.9,0.1118871]
[1720490498315,3.475,3033.6,3032.9,0.1118871]
[1720490498584,5.8402,3033.4,3032.9,0.1118871]
[1720490498722,3.475,3033.2,3032.9,0.1118871]
[1720490499058,3.475,3033.0,3032.9,0.1118871]
[1720490499221,10.42924514,3033.0,3032.9,0.1118871]
[1720490499911,9.09455009,3033.0,3032.9,0.1118871]
[1720490500520,10.42924514,3033.0,3032.9,0.1118871]
[1720490501164,9.09455009,3033.0,3032.9,0.1118871]
[1720490502115,7.95168078,3033.0,3032.9,0.1118871]
[1720490503050,3.84421455,3033.0,3032.9,0.1118871]
[1720490503254,1.64293836,3033.7,3032.9,0.1118871]
[1720490503438,1.2250698,3033.6,3032.9,0.1118871]
[1720490503621,0.08244403,3033.6,3032.9,0.1118871]
[1720490503812,1.14263709,3033.5,3032.9,0.1118871]
[1720490504014,3.475,3033.3,3032.9,0.1118871]
[1720490504239,3.55745304,3033.2,3032.9,0.1118871]
[1720490504443,3.475,3033.0,3032.9,0.1118871]
[1720490504643,7.26069916,3033.0,3032.9,0.1118871]
[1720490504947,8.88475386,3033.0,3032.9,0.1118871]
[1720490505149,10.57757854,3033.0,3032.9,0.1118871]
[1720490505352,9.43475386,3033.0,3030.8,4.7725]
[1720490505551,6.07299206,3032.8,3030.8,4.7725]
[1720490505867,3.475,3032.6,3030.8,4.7725]
[1720490506037,3.475,3032.4,3030.8,4.7725]
[1720490506248,0.08247996,3032.3,3030.8,4.7725]
[1720490506561,0.08247996,3032.2,3030.8,4.7725]
[1720490506745,0.655748,3032.1,3030.9,0.06598396]
[1720490506949,3.475,3032.7,3031.0,2.2764]
[1720490506950,3.08247051,3032.6,3031.0,2.2764]
[1720490507150,3.475,3032.5,3031.0,2.2764]
[1720490507365,7.21321899,3032.4,3031.0,2.2764]
[1720490507555,4.025,3032.3,3031.0,2.2764]
[1720490507754,0.08247978,3032.2,3031.0,2.2764]
[1720490507954,3.475,3032.1,3031.0,2.2764]
[1720490508170,3.08248346,3032.0,3031.0,2.2764]
[1720490508472,0.55,3032.1,3031.0,2.2764]
[1720490508473,3.0,3032.1,3031.0,2.2764]
[1720490508647,0.08248346,3032.6,3031.0,2.2764]
[1720490508848,0.08248346,3032.6,3031.0,2.3423755]
[1720490509045,3.0,3032.7,3031.1,5.60046]
[1720490509277,0.64226095,3032.6,3031.1,5.60046]
[1720490509569,0.64226095,3032.6,3031.1,2.3014]
[1720490510149,5.8459,3032.5,3031.1,2.3014]
[1720490510351,3.475,3032.3,3031.1,2.3014]
[1720490510583,0.08248127,3032.2,3031.1,2.3014]
[1720490510763,0.35574813,3032.1,3031.1,2.3014]
[1720490510959,3.08247319,3032.4,3031.1,2.3014]
[1720490511177,3.0,3032.3,3031.1,2.3014]
[1720490511488,0.08247529,3032.2,3031.1,2.3014]
[1720490512558,0.08247529,3032.2,3030.7,9.767]
[1720490512559,0.08247529,3032.2,3030.7,4.6427]
[1720490512888,3.475,3032.0,3030.7,2.3157]
[1720490513081,3.475,3031.8,3030.7,2.3157]
[1720490513263,0.08249103,3031.7,3030.7,2.3157]
[1720490513462,3.0,3031.7,3030.7,2.3157]
[1720490513679,0.6,3031.7,3030.7,2.3157]
[1720490514061,3.08248296,3032.0,3030.7,2.3157]
[1720490515054,3.475,3031.9,3030.7,2.3157]
[1720490515254,3.08248296,3032.0,3030.7,2.3157]
[1720490515255,7.10749078,3031.8,3030.7,2.3157]
[1720490515555,0.79323986,3031.7,3030.7,2.3157]
[1720490515892,3.79323986,3031.7,3030.7,2.3157]
[1720490516063,0.79323986,3031.7,3030.7,2.3157]
[1720490516264,3.0,3031.6,3030.7,2.3157]
[1720490516480,0.08249077,3031.5,3030.7,2.3157]
[1720490516989,0.48182399,3031.6,3030.7,2.3157]
[1720490517158,0.08248511,3031.5,3030.7,2.3157]
[1720490517354,0.08248511,3031.7,3030.7,2.3157]
[1720490517578,3.0,3032.0,3030.7,2.3157]
[1720490517779,0.3,3031.9,3030.7,2.3157]
[1720490518489,3.08248067,3032.1,3030.7,2.3157]
[1720490519299,0.34464311,3032.2,3030.8,2.44808266]
[1720490519618,0.08247224,3032.2,3030.8,2.3821]
[1720490520180,3.475,3032.1,3030.8,2.3821]
[1720490520410,0.67036293,3032.0,3030.8,2.3821]
[1720490520610,0.08248571,3032.0,3030.8,2.3821]
[1720490520812,3.08248586,3032.5,3030.8,2.3821]
[1720490521016,1.69306256,3032.4,3030.8,2.3821]
[1720490521236,0.08247575,3032.3,3030.8,2.3821]
[1720490521513,3.475,3032.1,3030.8,2.3821]
[1720490521674,3.0,3032.0,3030.8,2.3821]
[1720490521878,3.0,3032.5,3030.8,2.3821]
[1720490522118,1.77553443,3032.4,3030.8,2.3821]
[1720490522330,4.61805546,3032.3,3030.8,2.3821]
[1720490522481,3.475,3032.1,3030.8,2.3821]
[1720490522810,3.475,3031.9,3030.8,2.3821]
[1720490523112,3.0,3031.8,3030.8,2.3821]
[1720490523317,3.0,3032.0,3030.8,2.3821]
[1720490523495,3.0,3032.1,3030.8,2.3821]
[1720490523705,3.475,3031.9,3030.8,2.3821]
[1720490524003,3.08248818,3031.8,3030.8,2.3821]
[1720490524318,0.08248769,3031.7,3030.8,2.3821]
[1720490524537,0.55,3031.6,3030.8,2.3821]
[1720490524701,0.08249124,3031.5,3030.3,2.4669]
[1720490525221,3.0,3031.7,3030.4,2.4669]
[1720490525527,0.08248871,3031.7,3030.4,2.4669]
[1720490526620,0.55,3031.6,3030.4,2.4669]
[1720490526834,0.08249524,3031.5,3030.4,2.4669]
[1720490527528,0.36324952,3031.4,3030.4,2.4669]
[1720490527725,0.08249611,3031.3,3030.4,2.4669]
[1720490527887,0.08249773,3031.2,3030.4,2.4669]
[1720490530670,1.14345428,3031.1,3030.4,2.4669]
[1720490530812,0.0825007,3031.0,3030.4,2.4669]
[1720490531723,0.0825007,3031.0,3029.9,7.44]
[1720490531909,0.0825007,3031.0,3030.0,2.2986]
[1720490532112,1.14355614,3030.9,3030.0,2.2986]
[1720490532312,1.22606649,3030.8,3030.0,2.2986]
[1720490532519,0.08251035,3030.7,3030.0,2.2986]
[1720490533209,0.08251035,3030.7,3029.8,12.5918871]
[1720490533210,5.8713,3030.5,3029.8,0.1118871]
[1720490533587,0.63253296,3030.4,3029.8,0.1118871]
[1720490533857,3.0,3030.4,3029.8,0.1118871]
[1720490534012,3.0,3030.4,3029.8,2.4775871]
[1720490534347,3.14799206,3030.6,3029.8,2.4775871]
[1720490534348,3.0,3030.5,3029.8,2.4775871]
[1720490534521,3.55979921,3030.5,3029.8,2.4775871]
[1720490535011,3.64231525,3030.5,3029.8,2.4775871]
[1720490535213,3.64231525,3030.5,3029.8,0.1118871]
[1720490535438,3.55979921,3030.5,3029.8,0.1118871]
[1720490538461,2.59799206,3030.6,3029.9,2.4775]
[1720490538778,3.475,3031.4,3030.0,2.4775]
[1720490539056,0.08250321,3031.3,3030.0,2.4775]
[1720490539222,1.22589569,3031.3,3030.0,2.4775]
[1720490539419,1.65338025,3031.2,3030.0,2.4775]
[1720490539752,1.22600168,3031.1,3030.0,2.4775]
[1720490539963,1.14349846,3031.0,3030.0,2.4775]
[1720490540125,0.08250946,3030.9,3030.0,2.4775]
[1720490540326,5.1685229,3030.8,3030.0,2.4775]
[1720490540534,0.60761703,3030.7,3030.0,2.4775]
[1720490540726,3.60761703,3030.7,3030.0,2.4775]
[1720490541130,3.60761703,3030.7,3029.8,0.1118871]
[1720490541643,3.0,3030.6,3029.8,0.1118871]
[1720490541848,0.08251918,3030.5,3029.8,0.1118871]
[1720490543459,3.475,3030.3,3029.8,0.1118871]
[1720490543663,3.0,3030.2,3029.8,0.1118871]
[1720490544564,3.08252544,3030.2,3029.8,0.1118871]
[1720490544959,3.0,3030.2,3029.8,0.1118871]
[1720490545132,0.65575254,3030.1,3029.8,0.1118871]
[1720490545539,3.475,3030.6,3029.8,0.1118871]
[1720490545866,1.14373513,3030.5,3029.8,0.1118871]
[1720490546170,2.59799206,3030.9,3029.9,2.2522]
[1720490546171,3.0,3030.6,3029.9,2.2522]
[1720490546366,2.59799206,3030.9,3029.9,2.2522]
[1720490546674,0.509888,3031.2,3030.0,2.2522]
[1720490546842,0.08250271,3031.3,3030.0,2.2522]
[1720490547023,0.3446281,3031.4,3030.0,2.2522]
[1720490547024,0.08250315,3031.2,3030.0,2.2522]
[1720490548864,0.3446281,3031.4,3030.0,2.2522]
[1720490549081,3.08250748,3031.5,3030.1,2.3611]
[1720490549082,3.0,3031.5,3030.1,2.3611]
[1720490549284,1.14330788,3031.4,3030.1,2.3611]
[1720490549455,3.0,3031.5,3030.1,2.3611]
[1720490549775,1.14331657,3031.4,3030.1,2.3611]
[1720490549979,3.0,3031.5,3030.1,2.3611]
[1720490550185,0.34463574,3031.6,3030.3,3.29999]
[1720490550481,7.36,3032.6,3031.0,2.3418]
[1720490550637,1.14292727,3032.5,3031.2,2.3418]
[1720490550837,0.08246243,3033.1,3031.2,2.3418]
[1720490551170,0.34461761,3032.8,3031.8,2.3726]
[1720490551470,2.59799206,3033.3,3031.8,2.3726]
[1720490551471,2.59799206,3033.3,3031.9,2.3726]
[1720490551836,2.59799206,3033.3,3032.1,2.332]
[1720490552041,2.59799206,3033.3,3032.2,2.4925]
[1720490552263,0.25979921,3033.2,3032.2,2.4925]
[1720490553684,3.25979921,3033.2,3032.2,2.4925]
[1720490554043,3.81957045,3033.8,3032.3,0.06595071]
[1720490554275,3.81957045,3033.8,3032.4,2.4442]
[1720490554480,0.08243584,3034.1,3032.4,2.4442]
[1720490556401,5.458,3034.0,3032.4,2.4442]
[1720490556608,5.458,3033.8,3032.4,2.4442]
[1720490556754,3.91364573,3033.9,3032.0,2.3216]
[1720490556755,5.458,3033.6,3032.0,2.3216]
[1720490557102,3.475,3033.4,3032.0,2.3216]
[1720490557308,0.08245632,3033.3,3032.0,2.3216]
[1720490557452,3.475,3033.1,3031.3,7.44]
[1720490557652,3.475,3032.9,3031.4,2.4511]
[1720490557963,4.10746602,3032.8,3031.4,2.4511]
[1720490558186,3.49321259,3032.7,3031.4,2.4511]
[1720490558355,0.55,3032.6,3031.4,2.4511]
[1720490558568,0.08246596,3032.5,3031.4,2.4511]
[1720490559996,0.4107466,3032.7,3031.4,2.4511]
[1720490560300,0.08245527,3032.7,3031.4,2.4511]
[1720490561740,3.475,3032.5,3031.4,2.4511]
[1720490561941,4.10747364,3032.4,3031.4,2.4511]
[1720490562221,3.0,3032.3,3031.4,2.4511]
[1720490562429,0.79322098,3032.2,3031.4,2.4511]
[1720490562810,3.475,3032.1,3030.8,2.3581]
[1720490563155,3.08249064,3032.0,3030.8,2.3581]
[1720490563349,3.475,3031.9,3030.8,2.3581]
[1720490563626,2.533,3032.1,3030.8,2.3581]
[1720490563627,3.475,3031.7,3030.8,2.3581]
[1720490563773,3.475,3031.5,3030.8,2.3581]
[1720490564118,3.08249358,3031.4,3030.8,2.3581]
[1720490564314,6.55749358,3031.4,3030.3,2.312]
[1720490564528,4.68074936,3031.3,3030.3,2.312]
[1720490564748,3.475,3031.1,3030.3,2.312]
[1720490564876,0.08250498,3031.0,3029.9,2.312]
[1720490565073,0.3557505,3030.9,3029.9,2.312]
[1720490565289,0.08251058,3030.8,3029.9,2.312]
[1720490565516,0.08251049,3030.7,3029.9,2.312]
[1720490566022,0.08250994,3030.8,3029.9,2.312]
[1720490566324,6.475,3031.1,3029.9,2.312]
[1720490566325,3.0,3031.1,3029.9,2.312]
[1720490566536,0.08250308,3031.0,3029.9,2.312]
[1720490567592,0.0825031,3031.2,3029.9,2.312]
[1720490568776,2.3718031,3031.2,3029.9,2.312]
[1720490569006,4.56218031,3031.1,3029.9,2.312]
[1720490569207,3.08251683,3031.0,3029.9,2.312]
[1720490569590,3.0,3030.9,3029.9,2.312]
[1720490569919,0.08250611,3030.9,3029.9,2.312]
[1720490570123,0.44447475,3030.9,3029.9,2.312]
[1720490570479,0.36196864,3030.9,3029.9,2.312]
[1720490570693,3.53718031,3031.1,3029.9,2.312]
[1720490571038,0.53718031,3031.1,3029.9,2.312]
[1720490571190,2.59799206,3031.2,3029.9,2.312]
[1720490571391,2.68049611,3031.2,3029.9,2.312]
[1720490572127,3.0,3031.1,3029.9,2.312]
[1720490574331,0.0825058,3031.0,3029.9,2.312]
[1720490576139,3.475,3030.8,3029.9,2.312]
[1720490576291,7.51001615,3030.7,3029.9,2.312]
[1720490576494,3.55751615,3030.7,3029.9,2.312]
[1720490576827,6.475,3030.6,3029.8,0.1118871]
[1720490577053,3.475,3030.4,3029.8,0.1118871]
[1720490577194,3.41075229,3030.3,3029.8,0.1118871]
[1720490578609,3.0,3030.2,3029.8,0.1118871]
[1720490578819,0.41075229,3030.3,3029.8,0.1118871]
[1720490579018,3.08252116,3030.6,3029.8,0.1118871]
[1720490580394,0.08252116,3030.6,3029.8,0.1118871]
[1720490580795,6.475,3030.7,3028.4,2.3084]
[1720490580796,4.975,3030.2,3028.4,2.3084]
[1720490581008,3.475,3030.0,3028.4,2.3084]
[1720490581221,3.475,3029.8,3028.4,2.3084]
[1720490581529,3.475,3029.6,3028.4,2.3084]
[1720490581729,0.08255771,3029.5,3028.4,2.3084]
[1720490581949,4.025,3029.4,3028.4,2.3084]
[1720490582121,3.08255399,3029.3,3028.4,2.3084]
[1720490582447,4.81830939,3029.2,3028.4,2.3084]
[1720490582734,3.475,3029.0,3027.7,2.4857]
[1720490583035,4.10756956,3028.9,3027.7,2.4857]
[1720490583231,3.0,3028.8,3027.7,2.4857]
[1720490583737,3.0,3028.9,3027.7,2.4857]
[1720490583940,0.08256534,3029.8,3027.9,2.4432]
[1720490584239,2.533,3029.7,3027.9,2.4432]
[1720490584445,10.29386562,3029.6,3027.9,2.4432]
[1720490584731,3.475,3029.4,3027.9,2.4432]
[1720490584893,3.475,3029.2,3027.9,2.4432]
[1720490585094,3.475,3029.0,3027.9,2.4432]
[1720490585322,3.55756523,3029.0,3027.9,2.4432]
[1720490585520,3.0,3028.9,3027.9,2.4432]
[1720490585732,0.08256545,3028.8,3027.9,2.4432]
[1720490585932,0.08256759,3028.7,3027.9,2.4432]
[1720490586118,0.43832435,3028.7,3027.9,2.4432]
[1720490591417,3.91332435,3028.7,3027.2,2.4122]
[1720490591624,7.025,3028.6,3027.2,2.4122]
[1720490591933,0.08258218,3028.5,3027.2,2.4122]
[1720490592128,3.475,3028.3,3027.2,2.4122]
[1720490592344,0.082586,3028.2,3027.2,2.4122]
[1720490592652,0.082586,3028.2,3026.8,0.1118871]
[1720490592653,1.5,3027.9,3026.8,0.1118871]
[1720490592852,12.75587897,3027.8,3026.8,0.1118871]
[1720490593052,5.458,3027.4,3026.8,0.1118871]
[1720490593266,0.0826243,3027.3,3026.8,0.1118871]
[1720490593463,3.475,3027.1,3026.8,0.1118871]
[1720490593767,3.0,3027.0,3026.8,0.1118871]
[1720490594060,0.08261175,3027.2,3026.8,0.1118871]
[1720490594265,1.4255879,3027.7,3026.8,0.1118871]
[1720490594266,0.08261175,3026.9,3026.8,0.1118871]
[1720490594488,0.08261175,3026.9,3025.2,2.3851]
[1720490594628,1.983,3026.7,3025.2,2.3851]
[1720490594833,4.15591225,3026.6,3025.2,2.3851]
[1720490595053,3.475,3026.4,3025.2,2.3851]
[1720490595260,0.08264223,3026.3,3025.2,2.3851]
[1720490595459,3.475,3026.1,3025.2,2.3851]
[1720490595664,6.96840644,3026.0,3025.2,2.3851]
[1720490595869,4.025,3025.9,3024.5,2.4436]
[1720490596086,6.55765395,3025.8,3024.5,2.4436]
[1720490596291,3.475,3025.6,3024.5,2.4436]
[1720490596566,3.475,3025.6,3024.4,0.00320546]
[1720490596567,5.458,3025.4,3024.4,0.00320546]
[1720490596751,5.458,3025.1,3024.4,0.00320546]
[1720490597061,5.458,3025.1,3023.7,0.1118871]
[1720490597062,6.958,3024.9,3023.7,0.1118871]
[1720490597364,1.32849126,3025.0,3023.7,0.1118871]
[1720490597365,3.475,3024.7,3023.7,0.1118871]
[1720490597567,3.304,3025.6,3023.7,4.7127871]
[1720490597772,0.71076539,3025.7,3024.2,2.332]
[1720490597931,1.55,3026.0,3024.5,3.30632]
[1720490598129,0.08265113,3026.5,3024.7,2.332]
[1720490598358,0.08263159,3026.4,3024.4,2.2689]
[1720490598569,0.08263159,3026.4,3024.6,2.332]
[1720490598742,0.08263963,3026.8,3024.8,3.3059]
[1720490598943,0.08263153,3026.7,3025.0,3.30577]
[1720490599159,0.83105641,3026.8,3025.1,8.70374984]
[1720490599492,0.08262481,3026.9,3025.1,8.70374984]
[1720490599641,0.08262481,3026.9,3025.1,5.332]
[1720490599842,0.08262481,3026.9,3025.1,2.332]
[1720490600044,3.475,3026.7,3025.0,2.2689]
[1720490600354,1.983,3025.9,3024.3,2.2689]
[1720490600555,5.458,3025.6,3023.7,2.3807871]
[1720490600767,0.08267534,3025.5,3023.7,2.3807871]
[1720490600970,5.458,3025.3,3023.7,0.1118871]
[1720490601156,6.958,3025.1,3023.7,0.1118871]
[1720490601356,5.458,3024.5,3023.7,0.1118871]
[1720490601561,5.458,3024.3,3023.7,0.1118871]
[1720490601765,0.08270223,3024.2,3023.7,0.1118871]
[1720490601985,3.475,3024.0,3023.7,0.1118871]
[1720490602175,5.458,3023.8,3023.7,0.1118871]
[1720490602343,5.458,3023.8,3023.7,0.02915961]
[1720490602344,12.34763535,3023.8,3023.7,0.02915961]
[1720490602543,15.89763535,3023.8,3023.7,0.02915961]
[1720490602743,15.89763535,3023.8,3021.7,2.3699]
[1720490602744,3.475,3023.3,3021.7,2.3699]
[1720490602945,16.41082857,3023.8,3021.7,2.3699]
[1720490602946,8.93963535,3023.8,3021.9,2.332]
[1720490603261,3.55,3023.7,3021.9,2.332]
[1720490603954,3.475,3023.6,3021.9,2.332]
[1720490604277,0.55,3023.7,3022.2,2.332]
[1720490604458,0.55,3023.7,3022.3,0.0661692]
[1720490604794,0.55,3023.7,3021.8,3.30928]
[1720490604957,4.025,3023.7,3022.0,3.30903]
[1720490605577,4.025,3023.7,3022.1,0.06616966]
[1720490605879,4.83556411,3024.3,3022.6,3.30838]
[1720490606060,0.48355641,3024.2,3022.5,2.4807]
[1720490606271,0.48355641,3024.2,3022.5,5.4807]
[1720490606477,3.475,3024.1,3022.5,2.4807]
[1720490606795,0.48355641,3024.2,3021.5,2.4807]
[1720490606796,5.458,3023.7,3021.5,2.4807]
[1720490606999,5.458,3023.5,3021.5,2.4807]
[1720490607489,0.55,3023.4,3021.5,2.4807]
[1720490607674,3.475,3023.3,3021.6,3.3756909]
[1720490607873,3.475,3023.3,3021.5,2.4807]
[1720490608052,3.55,3023.5,3021.6,0.06618928]
[1720490608053,3.8975,3023.2,3021.6,0.06618928]
[1720490608271,3.3475,3023.2,3021.8,3.30928]
[1720490608493,3.0,3023.5,3021.9,0.06616781]
[1720490608673,0.3449549,3023.1,3021.5,2.54688264]
[1720490608983,0.3449549,3023.1,3022.1,3.30887]
[1720490609372,0.3449549,3023.1,3022.3,2.4807]
[1720490609673,3.475,3024.4,3022.6,3.30832]
[1720490609872,0.34488019,3023.8,3022.6,3.37447568]
[1720490610077,0.25979921,3024.4,3022.5,3.30843]
[1720490610278,11.579,3025.3,3023.2,2.3705]
[1720490610279,9.7716,3025.3,3023.2,2.3705]
[1720490610482,0.3448734,3024.1,3023.4,3.30752]
[1720490610654,2.34,3026.0,3023.3,0.55]
[1720490610655,3.475,3025.3,3023.3,0.55]
[1720490610987,0.34485734,3025.2,3023.4,0.06613401]
[1720490611288,0.34485734,3025.2,3023.3,3.55]
[1720490611289,0.34485734,3025.2,3023.3,6.85764]
[1720490611493,0.34485734,3025.2,3023.2,2.3705]
[1720490611679,3.475,3025.1,3023.2,2.3705]
[1720490612099,0.34485734,3025.2,3023.2,2.3705]
[1720490612100,5.458,3024.9,3023.2,2.3705]
[1720490612297,3.475,3024.3,3022.2,2.359]
[1720490612481,3.475,3024.3,3021.8,3.30927]
[1720490612482,10.29356411,3024.3,3021.8,3.30927]
[1720490612687,10.29356411,3024.3,3021.2,3.30986]
[1720490612688,5.458,3023.9,3021.2,3.30986]
[1720490613012,3.475,3023.7,3021.3,2.2551]
[1720490613186,5.458,3023.5,3021.3,2.2551]
[1720490613386,3.475,3023.3,3021.3,5.56492]
[1720490613601,3.475,3023.1,3021.3,5.56492]
[1720490613920,3.55,3023.2,3021.9,3.30908]
[1720490613921,3.0,3023.2,3021.9,3.30908]
[1720490614071,3.0,3023.9,3022.2,2.3606]
[1720490614407,4.83556411,3024.1,3021.6,2.359]
[1720490614703,1.5,3023.9,3021.5,2.3606]
[1720490614904,5.458,3023.8,3021.5,2.3606]
[1720490615104,5.458,3023.6,3021.5,2.3606]
[1720490615409,3.475,3023.4,3021.5,2.3606]
[1720490615704,3.475,3023.2,3021.5,2.3606]
[1720490615910,3.475,3023.0,3021.5,2.3606]